lending/lending_fUSD_20251111
["ID","MTS","AMOUNT","RATE_DAILY","PERIOD"]
[393663982,1762894247950,-169.21,0.0003863,2]
[393663983,1762894247960,-227.57,0.0003863,2]
[393663984,1762894247969,-409.54,0.0003863,2]
[393663985,1762894247978,-168.23,0.0003863,2]
[393663986,1762894247987,-506.58804321,0.00038674,2]
[393663987,1762894247998,-364.0,0.00038697,7]
[393663988,1762894248007,-1000.0,0.00038719,7]
[393663989,1762894248016,-1000.0,0.00038786,7]
[393663990,1762894248026,-364.0,0.00038803,2]
[393663991,1762894248035,-160.849292,0.00038822,2]
[393663992,1762894248045,-152.36376,0.00038822,2]
[393663993,1762894248054,-169.845965,0.00038822,2]
[393663994,1762894248063,-161.956926,0.00038847,3]
[393663995,1762894248072,-152.36376,0.00038847,3]
[393663996,1762894248085,-169.845965,0.00038847,3]
[393663997,1762894248101,-160.849292,0.00038847,3]
[393663998,1762894248110,-7261.48516385,0.00038869,2]
[393663999,1762894248120,-1000.0,0.00038878,7]
[393664000,1762894248130,-364.0,0.00038898,7]
[393664001,1762894248140,-211.0,0.0003891,30]
[393664002,1762894248149,-168.63131763,0.00038998,2]
[393664003,1762894248159,-364.0,0.00039002,2]
[393664004,1762894248168,-364.0,0.00039032,7]
[393664005,1762894248177,-506.58804321,0.00039047,2]
[393664006,1762894248186,-549.62,0.0003913,2]
[393664007,1762894248196,-1000.0,0.00039169,14]
[393664008,1762894248205,-549.62,0.00039178,2]
[393664009,1762894248215,-150.0,0.00039178,2]
[393664010,1762894248224,-1016.69156181,0.0003918,120]
[393664011,1762894248234,-1014.97,0.00039192,2]
[393664012,1762894248243,-549.62,0.00039193,2]
[393664013,1762894248252,-549.62,0.00039193,2]
[393664014,1762894248261,-549.62,0.00039193,2]
[393664015,1762894248270,-549.62,0.00039193,2]
[393664016,1762894248279,-549.62,0.00039193,2]
[393664017,1762894248288,-549.62,0.00039193,2]
[393664018,1762894248397,-549.62,0.00039193,2]
[393664019,1762894248407,-549.62,0.00039193,2]
[393664020,1762894248416,-549.62,0.00039193,2]
[393664021,1762894248425,-549.62,0.00039193,2]
[393664022,1762894248434,-549.62,0.00039193,2]
[393664023,1762894248445,-549.62,0.00039193,2]
[393664024,1762894248454,-549.62,0.00039193,2]
[393664025,1762894248464,-549.62,0.00039193,2]
[393664026,1762894248473,-549.62,0.00039193,2]
[393664027,1762894248483,-549.62,0.00039193,2]
[393664028,1762894248492,-549.62,0.00039193,2]
[393664029,1762894248501,-1000.0,0.00039221,7]
[393664030,1762894248510,-224.74,0.00039245,2]
[393664031,1762894248519,-211.17079323,0.00039265,11]
[393664032,1762894248528,-300.0,0.00039287,2]
[393664033,1762894248537,-1000.0,0.00039287,7]
[393664034,1762894248546,-300.0,0.00039389,2]
[393664035,1762894248556,-300.0,0.00039392,2]
[393664036,1762894248566,-300.0,0.00039398,10]
[393664037,1762894248577,-666.0,0.00039398,10]
[393664038,1762894248586,-300.0,0.00039399,10]
[393664039,1762894248596,-629.24326679,0.00039399,10]
[393664040,1762894248605,-719.6,0.000394,30]
[393664041,1762894248615,-1000.0,0.000394,7]
[393664042,1762894248624,-306.55,0.00039404,2]
[393664043,1762894248634,-300.0,0.00039405,2]
[393664044,1762894248643,-150.0,0.00039405,2]
[393664045,1762894248652,-150.0,0.00039405,2]
[393664046,1762894248662,-150.0,0.00039405,2]
[393664047,1762894248677,-150.0,0.00039405,2]
[393664048,1762894248686,-150.0,0.00039405,2]
[393664049,1762894248697,-150.0,0.00039405,2]
[393664050,1762894248706,-150.0,0.00039405,2]
[393664051,1762894248715,-506.58804321,0.00039419,2]
[393664052,1762894248724,-366.0,0.00039442,120]
[393664053,1762894248733,-1000.0,0.00039443,14]
[393664054,1762894248743,-330.14583196,0.00039444,2]
[393664055,1762894248753,-549.62,0.00039452,2]
[393664056,1762894248762,-549.62,0.00039452,2]
[393664057,1762894248771,-549.62,0.00039452,2]
[393664058,1762894248780,-549.62,0.00039452,2]
[393664059,1762894248789,-549.62,0.00039452,2]
[393664060,1762894248799,-548.48,0.00039452,2]
[393664061,1762894248807,-549.62,0.00039452,2]
[393664062,1762894248817,-549.62,0.00039452,2]
[393664063,1762894248827,-549.62,0.00039452,2]
[393664064,1762894248836,-549.62,0.00039452,2]
[393664065,1762894248845,-549.62,0.00039452,2]
[393664066,1762894248855,-549.62,0.00039452,2]
[393664067,1762894248863,-549.62,0.00039452,2]
[393664068,1762894248874,-549.62,0.00039452,2]
[393664069,1762894248883,-549.62,0.00039452,2]
[393664070,1762894248900,-549.62,0.00039452,2]
[393664071,1762894248909,-549.62,0.00039452,2]
[393664072,1762894248918,-549.62,0.00039452,2]
[393664073,1762894248928,-549.62,0.00039452,2]
[393664074,1762894248937,-549.62,0.00039452,2]
[393664075,1762894248947,-549.62,0.00039452,2]
[393664076,1762894248956,-549.62,0.00039452,2]
[393664077,1762894248966,-549.62,0.00039452,2]
[393664078,1762894248975,-549.62,0.00039452,2]
[393664079,1762894248985,-549.62,0.00039452,2]
[393664080,1762894248994,-549.62,0.00039452,2]
[393664081,1762894249003,-549.62,0.00039452,2]
[393664082,1762894249012,-549.62,0.00039452,2]
[393664083,1762894249022,-1085.81,0.00039452,2]
[393664084,1762894249031,-300.0,0.00039456,2]
[393664085,1762894249041,-300.0,0.0003946,10]
[393664086,1762894249050,-300.0,0.00039495,2]
[393664087,1762894249059,-300.0,0.00039499,2]
[393664088,1762894249069,-7261.48516385,0.00039517,2]
[393664089,1762894249078,-314.50635683,0.0003954,10]
[393664090,1762894249088,-189.07162841,0.00039542,2]
[393664091,1762894249098,-250.0,0.00039542,2]
[393664092,1762894249107,-250.0,0.00039542,2]
[393664093,1762894249116,-5310.0,0.00039544,2]
[393664094,1762894249125,-160.849292,0.00039554,2]
[393664095,1762894249136,-152.36376,0.00039554,2]
[393664096,1762894249145,-169.845965,0.00039554,2]
[393664097,1762894249154,-340.29,0.00039591,2]
[393664098,1762894249164,-364.0,0.00039592,2]
[393664099,1762894249175,-300.0,0.00039606,2]
[393664100,1762894249184,-1000.0,0.00039645,7]
[393664101,1762894249195,-278.59,0.00039654,2]
[393664102,1762894249204,-300.0,0.00039662,2]
[393664103,1762894249214,-587.4,0.000397,2]
[393664104,1762894249224,-300.0,0.00039712,2]
[393664105,1762894249234,-1000.0,0.00039717,14]
[393664106,1762894249243,-205.930075,0.00039726,21]
[393664107,1762894249252,-205.930075,0.00039726,21]
[393664108,1762894249262,-205.930075,0.00039726,21]
[393664109,1762894249271,-205.930075,0.00039726,21]
[393664110,1762894249280,-506.58804321,0.00039792,2]
[393664111,1762894249289,-1000.0,0.00039806,7]
[393664112,1762894249298,-364.0,0.00039806,7]
[393664113,1762894249307,-500.0,0.00039814,2]
[393664114,1762894249316,-500.0,0.00039834,20]
[393664115,1762894249325,-200.0,0.00039835,2]
[393664116,1762894249334,-200.0,0.00039835,2]
[393664117,1762894249343,-200.0,0.00039835,2]
[393664118,1762894249352,-200.0,0.00039835,2]
[393664119,1762894249361,-200.0,0.00039835,2]
[393664120,1762894249370,-200.0,0.00039835,2]
[393664121,1762894249379,-200.0,0.00039835,2]
[393664122,1762894249388,-200.0,0.00039835,2]
[393664123,1762894249397,-200.0,0.00039835,2]
[393664124,1762894249406,-200.0,0.00039835,2]
[393664125,1762894249416,-200.0,0.00039835,2]
[393664126,1762894249426,-200.0,0.00039835,2]
[393664127,1762894249437,-200.0,0.00039835,2]
[393664128,1762894249447,-200.0,0.00039835,2]
[393664129,1762894249456,-200.0,0.00039835,2]
[393664130,1762894249465,-200.0,0.00039835,2]
[393664131,1762894249475,-200.0,0.00039835,2]
[393664132,1762894249484,-200.0,0.00039835,2]
[393664133,1762894249495,-200.0,0.00039835,2]
[393664134,1762894249504,-200.0,0.00039835,2]
[393664135,1762894249515,-200.0,0.00039835,2]
[393664136,1762894249524,-200.0,0.00039835,2]
[393664137,1762894249534,-200.0,0.00039835,2]
[393664138,1762894249543,-200.0,0.00039835,2]
[393664139,1762894249552,-200.0,0.00039835,2]
[393664140,1762894249561,-200.0,0.00039835,2]
[393664141,1762894249571,-200.0,0.00039835,2]
[393664142,1762894249580,-200.0,0.00039835,2]
[393664143,1762894249589,-200.0,0.00039835,2]
[393664144,1762894249598,-200.0,0.00039835,2]
[393664145,1762894249608,-200.0,0.00039835,2]
[393664146,1762894249617,-200.0,0.00039835,2]
[393664147,1762894249629,-200.0,0.00039835,2]
[393664148,1762894249638,-200.0,0.00039835,2]
[393664149,1762894249648,-200.0,0.00039835,2]
[393664150,1762894249657,-299.0,0.00039835,2]
[393664151,1762894249667,-300.0,0.00039895,2]
[393664152,1762894249679,-500.0,0.00039951,20]
[393664153,1762894249690,-152.36376,0.00039956,60]
[393664154,1762894249699,-169.845965,0.00039956,60]
[393664155,1762894249710,-300.0,0.00039962,2]
[393664156,1762894249720,-300.0,0.00039973,5]
[393664157,1762894249732,-500.0,0.00039989,20]
[393664158,1762894249743,-1000.0,0.00039991,14]
[393664159,1762894249753,-151.0,0.00039997,14]
[393664160,1762894249763,-1004.5997,0.00039999,2]
[393664161,1762894249772,-500.0,0.00039999,2]
[393664162,1762894249781,-216.16,0.00039999,20]
[393664163,1762894249791,-500.0,0.00039999,20]
[393664164,1762894249800,-721.38,0.00039999,20]
[393664165,1762894249809,-721.38,0.00039999,20]
[393664166,1762894249819,-2000.0,0.00039999,2]
[393664167,1762894249828,-2060.31,0.00039999,2]
[393664168,1762894249837,-2060.31,0.00039999,2]
[393664169,1762894249847,-300.0,0.00039999,2]
[393664170,1762894249857,-300.0,0.00039999,2]
[393664171,1762894249866,-786.39,0.00039999,20]
[393664172,1762894249876,-500.0,0.00039999,20]
[393664173,1762894249886,-202871.57248067,0.0004,2]
[393664174,1762894249895,-170.34381769,0.0004,30]
[393664175,1762894249904,-384.85886256,0.0004,2]
[393664176,1762894249914,-544.87747677,0.0004,120]
[393664177,1762894249927,-215.69545967,0.0004,2]
[393664178,1762894249936,-310.36721127,0.0004,2]
[393664179,1762894249947,-151.0,0.0004,30]
[393664180,1762894249957,-213.82,0.0004,120]
[393664181,1762894249966,-573.22,0.0004,120]
[393664182,1762894249976,-186.56,0.0004,120]
[393664183,1762894249986,-534.12,0.0004,120]
[393664184,1762894249996,-151.0,0.0004,120]
[393664185,1762894250006,-292.579607,0.0004,120]
[393664186,1762894250015,-151.0,0.0004,120]
[393664187,1762894250026,-151.0,0.0004,14]
[393664188,1762894250035,-151.0,0.0004,14]
[393664189,1762894250044,-151.0,0.0004,14]
[393664190,1762894250053,-151.0,0.0004,120]
[393664191,1762894250062,-151.0,0.0004,120]
[393664192,1762894250072,-151.0,0.0004,120]
[393664193,1762894250082,-151.0,0.0004,120]
[393664194,1762894250092,-151.0,0.0004,120]
[393664195,1762894250102,-151.0,0.0004,120]
[393664196,1762894250111,-151.0,0.0004,120]
[393664197,1762894250120,-151.0,0.0004,120]
[393664198,1762894250130,-151.0,0.0004,120]
[393664199,1762894250140,-151.0,0.0004,120]
[393664200,1762894250150,-151.0,0.0004,120]
[393664201,1762894250160,-151.0,0.0004,120]
[393664202,1762894250170,-151.0,0.0004,120]
[393664203,1762894250181,-151.0,0.0004,120]
[393664204,1762894250191,-163.839362,0.0004,120]
[393664205,1762894250201,-151.0,0.0004,120]
[393664206,1762894250210,-151.0,0.0004,120]
[393664207,1762894250220,-151.0,0.0004,120]
[393664208,1762894250229,-151.0,0.0004,120]
[393664209,1762894250239,-151.0,0.0004,120]
[393664210,1762894250249,-151.0,0.0004,60]
[393664211,1762894250258,-151.0,0.0004,120]
[393664212,1762894250268,-151.0,0.0004,120]
[393664213,1762894250277,-151.0,0.0004,30]
[393664214,1762894250287,-151.0,0.0004,120]
[393664215,1762894250296,-151.0,0.0004,120]
[393664216,1762894250306,-151.0,0.0004,120]
[393664217,1762894250315,-162.059813,0.0004,120]
[393664218,1762894250324,-151.0,0.0004,120]
[393664219,1762894250334,-151.0,0.0004,120]
[393664220,1762894250343,-158.084286,0.0004,10]
[393664221,1762894250352,-151.0,0.0004,120]
[393664222,1762894250362,-151.0,0.0004,120]
[393664223,1762894250370,-184.564475,0.0004,120]
[393664224,1762894250379,-152.786517,0.0004,120]
[393664225,1762894250388,-151.0,0.0004,120]
[393664226,1762894250397,-151.0,0.0004,120]
[393664227,1762894250406,-160.275774,0.0004,120]
[393664228,1762894250415,-151.0,0.0004,120]
[393664229,1762894250424,-151.0,0.0004,120]
[393664230,1762894250434,-151.0,0.0004,120]
[393664231,1762894250444,-151.0,0.0004,30]
[393664232,1762894250453,-161.44369,0.0004,120]
[393664233,1762894250462,-152.332641,0.0004,120]
[393664234,1762894250474,-151.0,0.0004,120]
[393664235,1762894250484,-151.766308,0.0004,120]
[393664236,1762894250586,-151.0,0.0004,120]
[393664237,1762894250598,-151.799888,0.0004,120]
[393664238,1762894250608,-205.930075,0.0004,21]
[393664239,1762894250618,-205.930075,0.0004,21]
[393664240,1762894250628,-205.930075,0.0004,21]
[393664241,1762894250637,-205.930075,0.0004,21]
[393664242,1762894250646,-151.0,0.0004,120]
[393664243,1762894250655,-151.0,0.0004,120]
[393664244,1762894250669,-151.0,0.0004,60]
[393664245,1762894250678,-151.0,0.0004,120]
[393664246,1762894250687,-151.0,0.0004,120]
[393664247,1762894250699,-151.0,0.0004,120]
[393664248,1762894250709,-151.0,0.0004,120]
[393664249,1762894250718,-203.992018,0.0004,120]
[393664250,1762894250727,-151.0,0.0004,120]
[393664251,1762894250738,-151.0,0.0004,120]
[393664252,1762894250747,-151.0,0.0004,120]
[393664253,1762894250756,-151.0,0.0004,120]
[393664254,1762894250766,-240.977414,0.0004,120]
[393664255,1762894250774,-151.0,0.0004,120]
[393664256,1762894250784,-151.0,0.0004,120]
[393664257,1762894250793,-151.0,0.0004,120]
[393664258,1762894250801,-289.258644,0.0004,120]
[393664259,1762894250810,-151.0,0.0004,120]
[393664260,1762894250820,-213.456857,0.0004,120]
[393664261,1762894250829,-154.151378,0.0004,120]
[393664262,1762894250838,-151.0,0.0004,120]
[393664263,1762894250847,-213.456857,0.0004,120]
[393664264,1762894250856,-213.456857,0.0004,120]
[393664265,1762894250865,-151.0,0.0004,120]
[393664266,1762894250875,-213.456857,0.0004,120]
[393664267,1762894250883,-151.0,0.0004,120]
[393664268,1762894250893,-151.0,0.0004,120]
[393664269,1762894250902,-151.0,0.0004,120]
[393664270,1762894250911,-151.0,0.0004,120]
[393664271,1762894250920,-151.0,0.0004,120]
[393664272,1762894250930,-165.664254,0.0004,120]
[393664273,1762894250941,-151.0,0.0004,120]
[393664274,1762894250950,-151.0,0.0004,120]
[393664275,1762894250959,-151.0,0.0004,120]
[393664276,1762894250969,-151.0,0.0004,120]
[393664277,1762894250978,-151.0,0.0004,120]
[393664278,1762894250988,-151.0,0.0004,120]
[393664279,1762894250997,-151.0,0.0004,120]
[393664280,1762894251006,-161.288768,0.0004,120]
[393664281,1762894251017,-151.0,0.0004,120]
[393664282,1762894251026,-153.610227,0.0004,120]
[393664283,1762894251036,-151.0,0.0004,15]
[393664284,1762894251045,-151.0,0.0004,120]
[393664285,1762894251054,-151.0,0.0004,120]
[393664286,1762894251064,-151.0,0.0004,120]
[393664287,1762894251073,-151.0,0.0004,120]
[393664288,1762894251082,-151.0,0.0004,120]
[393664289,1762894251092,-151.0,0.0004,120]
[393664290,1762894251101,-154.786239,0.0004,120]
[393664291,1762894251111,-154.786239,0.0004,120]
[393664292,1762894251120,-154.786239,0.0004,120]
[393664293,1762894251131,-151.0,0.0004,120]
[393664294,1762894251140,-154.786239,0.0004,120]
[393664295,1762894251149,-151.0,0.0004,120]
[393664296,1762894251159,-151.0,0.0004,120]
[393664297,1762894251168,-671.35,0.0004,120]
[393664298,1762894251178,-151.0,0.0004,120]
[393664299,1762894251187,-671.35,0.0004,120]
[393664300,1762894251200,-248.368719,0.0004,120]
[393664301,1762894251209,-671.35,0.0004,120]
[393664302,1762894251218,-151.0,0.0004,120]
[393664303,1762894251228,-671.35,0.0004,120]
[393664304,1762894251238,-151.0,0.0004,120]
[393664305,1762894251248,-152.681235,0.0004,120]
[393664306,1762894251257,-266.930809,0.0004,5]
[393664307,1762894251266,-151.0,0.0004,120]
[393664308,1762894251276,-151.0,0.0004,120]
[393664309,1762894251286,-151.0,0.0004,120]
[393664310,1762894251295,-185.478767,0.0004,120]
[393664311,1762894251305,-185.478767,0.0004,120]
[393664312,1762894251314,-185.478767,0.0004,120]
[393664313,1762894251325,-185.478767,0.0004,120]
[393664314,1762894251334,-151.0,0.0004,90]
[393664315,1762894251343,-151.0,0.0004,120]
[393664316,1762894251352,-165.22064,0.0004,120]
[393664317,1762894251362,-151.0,0.0004,120]
[393664318,1762894251371,-151.0,0.0004,120]
[393664319,1762894251381,-294.517034,0.0004,120]
[393664320,1762894251391,-151.0,0.0004,120]
[393664321,1762894251400,-151.0,0.0004,120]
[393664322,1762894251410,-151.0,0.0004,120]
[393664323,1762894251420,-151.0,0.0004,120]
[393664324,1762894251430,-151.0,0.0004,120]
[393664325,1762894251440,-151.0,0.0004,120]
[393664326,1762894251450,-151.0,0.0004,120]
[393664327,1762894251460,-151.0,0.0004,120]
[393664328,1762894251470,-151.0,0.0004,120]
[393664329,1762894251479,-153.077392,0.0004,120]
[393664330,1762894251490,-2010.025018,0.0004,120]
[393664331,1762894251502,-2010.025018,0.0004,120]
[393664332,1762894251512,-151.0,0.0004,120]
[393664333,1762894251522,-151.0,0.0004,120]
[393664334,1762894251532,-2010.025018,0.0004,120]
[393664335,1762894251542,-177.153191,0.0004,120]
[393664336,1762894251552,-177.153191,0.0004,120]
[393664337,1762894251562,-2010.025018,0.0004,120]
[393664338,1762894251573,-151.0,0.0004,120]
[393664339,1762894251584,-177.153191,0.0004,120]
[393664340,1762894251595,-151.0,0.0004,120]
[393664341,1762894251605,-201.485974,0.0004,120]
[393664342,1762894251617,-151.0,0.0004,120]
[393664343,1762894251626,-201.485974,0.0004,120]
[393664344,1762894251636,-177.153191,0.0004,120]
[393664345,1762894251646,-201.485974,0.0004,120]
[393664346,1762894251656,-151.0,0.0004,30]
[393664347,1762894251666,-201.485974,0.0004,120]
[393664348,1762894251681,-151.0,0.0004,120]
[393664349,1762894251692,-151.0,0.0004,30]
[393664350,1762894251701,-151.0,0.0004,120]
[393664351,1762894251711,-288.059023,0.0004,30]
[393664352,1762894251720,-151.0,0.0004,120]
[393664353,1762894251730,-151.0,0.0004,120]
[393664354,1762894251739,-238.40758,0.0004,120]
[393664355,1762894251749,-151.0,0.0004,120]
[393664356,1762894251758,-151.0,0.0004,120]
[393664357,1762894251768,-151.0,0.0004,120]
[393664358,1762894251778,-151.0,0.0004,120]
[393664359,1762894251787,-151.0,0.0004,120]
[393664360,1762894251797,-151.0,0.0004,120]
[393664361,1762894251808,-249.570385,0.0004,120]
[393664362,1762894251818,-151.0,0.0004,120]
[393664363,1762894251828,-249.570385,0.0004,120]
[393664364,1762894251837,-151.0,0.0004,120]
[393664365,1762894251847,-249.570385,0.0004,120]
[393664366,1762894251856,-151.0,0.0004,120]
[393664367,1762894251866,-249.570385,0.0004,120]
[393664368,1762894251876,-151.0,0.0004,120]
[393664369,1762894251885,-709.808044,0.0004,120]
[393664370,1762894251895,-151.0,0.0004,120]
[393664371,1762894251904,-709.808044,0.0004,120]
[393664372,1762894251914,-151.0,0.0004,120]
[393664373,1762894251924,-709.808044,0.0004,120]
[393664374,1762894251934,-151.0,0.0004,120]
[393664375,1762894251944,-709.808044,0.0004,120]
[393664376,1762894251954,-151.0,0.0004,120]
[393664377,1762894251964,-152.361552,0.0004,120]
[393664378,1762894251974,-151.0,0.0004,120]
[393664379,1762894251983,-151.0,0.0004,120]
[393664380,1762894251993,-151.0,0.0004,120]
[393664381,1762894252003,-151.0,0.0004,120]
[393664382,1762894252013,-208.928791,0.0004,2]
[393664383,1762894252023,-151.0,0.0004,120]
[393664384,1762894252033,-208.928791,0.0004,2]
[393664385,1762894252043,-208.928791,0.0004,2]
[393664386,1762894252053,-208.928791,0.0004,2]
[393664387,1762894252064,-151.0,0.0004,120]
[393664388,1762894252075,-151.0,0.0004,120]
[393664389,1762894252085,-151.0,0.0004,28]
[393664390,1762894252095,-151.0,0.0004,28]
[393664391,1762894252105,-198.283238,0.0004,120]
[393664392,1762894252115,-151.0,0.0004,120]
[393664393,1762894252125,-208.226938,0.0004,120]
[393664394,1762894252135,-151.0,0.0004,120]
[393664395,1762894252145,-208.226938,0.0004,120]
[393664396,1762894252155,-165.486184,0.0004,120]
[393664397,1762894252165,-293.442961,0.0004,120]
[393664398,1762894252175,-208.226938,0.0004,120]
[393664399,1762894252185,-208.226938,0.0004,120]
[393664400,1762894252196,-151.0,0.0004,120]
[393664401,1762894252206,-152.20811,0.0004,120]
[393664402,1762894252215,-156.554393,0.0004,120]
[393664403,1762894252226,-151.0,0.0004,120]
[393664404,1762894252235,-186.230922,0.0004,120]
[393664405,1762894252245,-506.12202,0.0004,120]
[393664406,1762894252255,-151.0,0.0004,120]
[393664407,1762894252265,-151.0,0.0004,120]
[393664408,1762894252274,-506.12202,0.0004,120]
[393664409,1762894252285,-202.312714,0.0004,120]
[393664410,1762894252295,-151.0,0.0004,120]
[393664411,1762894252305,-506.12202,0.0004,120]
[393664412,1762894252314,-151.0,0.0004,120]
[393664413,1762894252324,-151.0,0.0004,120]
[393664414,1762894252334,-506.12202,0.0004,120]
[393664415,1762894252343,-175.796118,0.0004,120]
[393664416,1762894252353,-151.0,0.0004,120]
[393664417,1762894252362,-151.0,0.0004,120]
[393664418,1762894252371,-151.0,0.0004,120]
[393664419,1762894252381,-151.0,0.0004,120]
[393664420,1762894252390,-350.538111,0.0004,30]
[393664421,1762894252400,-151.0,0.0004,120]
[393664422,1762894252409,-350.538111,0.0004,30]
[393664423,1762894252418,-151.0,0.0004,120]
[393664424,1762894252428,-990.96206,0.0004,120]
[393664425,1762894252437,-350.538111,0.0004,30]
[393664426,1762894252448,-990.96206,0.0004,120]
[393664427,1762894252457,-151.0,0.0004,120]
[393664428,1762894252466,-350.538111,0.0004,30]
[393664429,1762894252476,-990.96206,0.0004,120]
[393664430,1762894252486,-151.0,0.0004,120]
[393664431,1762894252496,-990.96206,0.0004,120]
[393664432,1762894252506,-181.926442,0.0004,120]
[393664433,1762894252516,-181.926442,0.0004,120]
[393664434,1762894252525,-151.0,0.0004,120]
[393664435,1762894252535,-181.926442,0.0004,120]
[393664436,1762894252544,-151.0,0.0004,120]
[393664437,1762894252644,-154.15428,0.0004,120]
[393664438,1762894252654,-181.926442,0.0004,120]
[393664439,1762894252668,-151.0,0.0004,95]
[393664440,1762894252677,-151.0,0.0004,120]
[393664441,1762894252687,-151.0,0.0004,95]
[393664442,1762894252697,-940.307563,0.0004,120]
[393664443,1762894252706,-151.0,0.0004,95]
[393664444,1762894252715,-151.0,0.0004,120]
[393664445,1762894252727,-940.307563,0.0004,120]
[393664446,1762894252736,-940.307563,0.0004,120]
[393664447,1762894252746,-940.307563,0.0004,120]
[393664448,1762894252755,-161.096469,0.0004,120]
[393664449,1762894252764,-151.0,0.0004,120]
[393664450,1762894252773,-151.0,0.0004,120]
[393664451,1762894252782,-151.0,0.0004,120]
[393664452,1762894252791,-278.841849,0.0004,120]
[393664453,1762894252800,-151.0,0.0004,120]
[393664454,1762894252809,-151.0,0.0004,120]
[393664455,1762894252819,-151.0,0.0004,120]
[393664456,1762894252828,-151.0,0.0004,120]
[393664457,1762894252837,-151.0,0.0004,120]
[393664458,1762894252846,-151.0,0.0004,120]
[393664459,1762894252855,-151.0,0.0004,120]
[393664460,1762894252864,-203.134716,0.0004,120]
[393664461,1762894252874,-162.998621,0.0004,120]
[393664462,1762894252883,-203.134716,0.0004,120]
[393664463,1762894252892,-203.134716,0.0004,120]
[393664464,1762894252901,-151.0,0.0004,120]
[393664465,1762894252910,-151.0,0.0004,120]
[393664466,1762894252919,-203.134716,0.0004,120]
[393664467,1762894252928,-151.0,0.0004,120]
[393664468,1762894252938,-151.0,0.0004,120]
[393664469,1762894252948,-151.0,0.0004,120]
[393664470,1762894252958,-154.057735,0.0004,120]
[393664471,1762894252967,-151.0,0.0004,120]
[393664472,1762894252977,-151.0,0.0004,120]
[393664473,1762894252986,-151.0,0.0004,120]
[393664474,1762894252996,-162.368071,0.0004,120]
[393664475,1762894253006,-196.104165,0.0004,120]
[393664476,1762894253016,-151.0,0.0004,120]
[393664477,1762894253027,-519.878476,0.0004,120]
[393664478,1762894253038,-174.612619,0.0004,120]
[393664479,1762894253049,-500.476043,0.0004,15]
[393664480,1762894253059,-519.878476,0.0004,120]
[393664481,1762894253070,-174.612619,0.0004,120]